bitfinex/quotes_BTCUSD_20260310
["timestamp","ask_amount","ask_price","bid_price","bid_amount"]
[1773164602187,0.0001125,70739.0,70727.0,0.00148]
[1773164602885,0.0002,70731.0,70728.0,0.07069336]
[1773164603653,0.0002,70731.0,70729.0,0.00148]
[1773164604120,0.0001125,70739.0,70729.0,0.00148]
[1773164604481,0.11115271,70759.0,70729.0,0.00148]
[1773164604482,0.07067023,70752.0,70732.0,0.814194]
[1773164604681,0.0708735,70748.0,70733.0,0.07068836]
[1773164605023,0.0708736,70748.0,70733.0,0.07068836]
[1773164605225,0.0002,70748.0,70734.0,0.00148]
[1773164605522,0.03,70747.0,70735.0,0.00148]
[1773164605721,0.03,70747.0,70736.0,0.00148]
[1773164606220,0.03,70747.0,70737.0,0.00148]
[1773164606822,0.03,70745.0,70737.0,0.00148]
[1773164607255,0.03,70745.0,70728.0,0.07069325]
[1773164607256,0.03,70745.0,70729.0,0.00147421]
[1773164607460,0.03,70745.0,70729.0,0.00037521]
[1773164607630,0.03,70739.0,70730.0,0.00148]
[1773164608019,0.03,70739.0,70731.0,0.00144]
[1773164608250,0.03,70739.0,70732.0,0.00144]
[1773164608620,0.03,70738.0,70732.0,0.00144]
[1773164609111,0.10068339,70738.0,70729.0,0.00037521]
[1773164609306,0.10068339,70738.0,70721.0,0.07069999]
[1773164609547,0.10105853,70738.0,70722.0,0.00144]
[1773164609905,0.10105853,70738.0,70723.0,0.00144]
[1773164610111,0.10105853,70738.0,70719.0,0.07070035]
[1773164610348,0.10105853,70738.0,70724.0,0.00144]
[1773164610525,0.15923254,70738.0,70725.0,0.00144]
[1773164610725,0.15923254,70738.0,70719.0,0.07070035]
[1773164610951,0.08817401,70736.0,70720.0,0.00144]
[1773164611575,0.08817401,70736.0,70715.0,0.07070618]
[1773164611815,0.08817401,70729.0,70713.0,0.00022]
[1773164611949,0.03,70727.0,70714.0,0.00144]
[1773164612146,0.03,70727.0,70715.0,0.00144]
[1773164612578,0.03,70727.0,70713.0,0.00022]
[1773164612803,0.16013807,70723.0,70705.0,0.07093609]
[1773164613004,0.03,70722.0,70700.0,0.00245]
[1773164613211,0.03,70720.0,70701.0,0.07216035]
[1773164613430,0.03,70720.0,70701.0,0.00144]
[1773164613588,0.19013807,70720.0,70701.0,0.00144]
[1773164614183,0.03,70719.0,70702.0,0.00093289]
[1773164614783,0.03,70719.0,70701.0,0.00144]
[1773164614962,0.03,70717.0,70702.0,0.07071935]
[1773164615406,0.03,70717.0,70701.0,0.07071988]
[1773164615580,0.03,70717.0,70703.0,0.00144]
[1773164617059,0.03,70715.0,70704.0,0.07071735]
[1773164617259,0.03,70715.0,70705.0,0.00144]
[1773164617481,0.03,70710.0,70706.0,0.00144]
[1773164618202,0.03,70710.0,70706.0,0.0001125]
[1773164618422,0.03,70709.0,70706.0,0.0001125]
[1773164618720,0.08817401,70709.0,70700.0,0.00045]
[1773164618921,0.03,70707.0,70693.0,0.00022]
[1773164619103,0.03,70700.0,70694.0,0.00144]
[1773164619305,0.00011251,70707.0,70695.0,0.00422987]
[1773164619506,0.07070622,70716.0,70695.0,0.00422987]
[1773164619507,0.07070635,70715.0,70695.0,0.00422987]
[1773164619717,0.07070635,70715.0,70695.0,0.00155251]
[1773164619918,0.07070635,70715.0,70696.0,0.00144]
[1773164620115,0.03,70714.0,70696.0,0.00144]
[1773164622252,0.07070635,70715.0,70696.0,0.00144]
[1773164622253,0.03,70712.0,70697.0,0.07072435]
[1773164622399,0.03,70712.0,70698.0,0.00144]
[1773164623010,0.18912957,70707.0,70695.0,0.00155251]
[1773164623375,0.08817401,70705.0,70695.0,0.00144]
[1773164624142,0.03,70703.0,70695.0,0.00144]
[1773164624332,0.03,70703.0,70694.0,0.00144]
[1773164625985,0.03,70703.0,70697.0,0.00022]
[1773164626194,0.03,70701.0,70697.0,0.00022]
[1773164626548,0.03,70701.0,70698.0,0.00144]
[1773164626752,0.03,70701.0,70699.0,0.00144]
[1773164627160,0.03,70701.0,70689.0,0.00022]
[1773164627366,0.03,70699.0,70690.0,0.00144]
[1773164627565,0.03,70699.0,70686.0,1e-08]
[1773164627810,0.16006613,70700.0,70682.0,0.00022]
[1773164627811,0.03,70697.0,70687.0,0.00144]
[1773164628012,0.03,70691.0,70676.0,0.05193695]
[1773164628166,0.03,70691.0,70665.0,0.07075607]
[1773164628167,0.03,70687.0,70665.0,0.07075607]
[1773164628376,0.03011257,70687.0,70675.0,0.00144]
[1773164629677,0.03011257,70687.0,70663.0,0.07075755]
[1773164629886,0.03,70683.0,70662.0,0.0002]
[1773164630062,0.32013226,70684.0,70661.0,1e-08]
[1773164630063,0.03,70671.0,70661.0,1e-08]
[1773164630260,0.03,70669.0,70661.0,1e-08]
[1773164630500,0.03,70669.0,70658.0,0.00144]
[1773164630699,0.03,70667.0,70656.0,0.00144]
[1773164631264,0.08623841,70667.0,70656.0,0.00144]
[1773164631711,0.08623841,70667.0,70653.0,0.04600771]
[1773164631918,0.08623841,70667.0,70656.0,0.00144]
[1773164632291,0.03,70667.0,70656.0,0.00144]
[1773164632875,0.07074937,70674.0,70656.0,0.0722048]
[1773164633077,0.07074937,70674.0,70656.0,0.07220525]
[1773164633284,0.03,70673.0,70657.0,0.054886]
[1773164633504,0.03,70673.0,70657.0,0.056326]
[1773164633705,0.03,70673.0,70662.0,0.0002]
[1773164634680,0.03,70673.0,70662.0,0.07095863]
[1773164635115,0.03,70673.0,70662.0,0.0002]
[1773164635309,0.03,70672.0,70662.0,0.0002]
[1773164636429,0.03,70671.0,70662.0,0.0002]
[1773164636635,0.03,70671.0,70662.0,0.07095928]
[1773164636793,0.03,70671.0,70662.0,0.0002]
[1773164637135,0.03,70671.0,70663.0,0.00144]
[1773164637484,0.03,70672.0,70663.0,0.00144]
[1773164637690,0.03,70672.0,70662.0,0.07095924]
[1773164637924,0.03,70672.0,70663.0,0.00144]
[1773164638528,0.03,70671.0,70663.0,0.07219827]
[1773164639519,0.03,70670.0,70663.0,0.00144]
[1773164640166,0.07074307,70679.0,70662.0,0.0002]
[1773164640167,0.00562,70684.0,70662.0,0.07095915]
[1773164640344,0.00562,70684.0,70665.0,0.054886]
[1773164640643,0.07071189,70710.0,70668.0,0.841579]
[1773164640817,0.07094646,70695.0,70672.0,0.054886]
[1773164641137,0.07094646,70695.0,70676.0,0.222769]
[1773164641341,0.07094646,70695.0,70677.0,0.126947]
[1773164641647,0.03023,70700.0,70677.0,0.054886]
[1773164641845,0.03023,70700.0,70673.0,0.00144]
[1773164641846,0.03023,70700.0,70679.0,0.054886]
[1773164642392,0.03023,70700.0,70681.0,0.32111394]
[1773164642599,0.03,70699.0,70682.0,0.054886]
[1773164642834,0.03,70699.0,70684.0,0.054886]
[1773164643412,0.00022001,70702.0,70684.0,0.054886]
[1773164643944,0.03022001,70702.0,70684.0,0.054886]
[1773164644245,0.0763313,70712.0,70685.0,0.054886]
[1773164644544,0.0763313,70712.0,70690.0,0.054886]
[1773164644977,0.03,70711.0,70691.0,0.00144]
[1773164645176,0.03,70711.0,70692.0,0.054886]
[1773164645386,0.03,70707.0,70693.0,0.00144]
[1773164645543,0.03,70707.0,70694.0,0.00144]
[1773164645741,0.03,70707.0,70695.0,0.00144]
[1773164646331,0.03,70711.0,70695.0,0.00144]
[1773164646526,0.03,70709.0,70695.0,0.00144]
[1773164646733,0.03,70709.0,70696.0,0.00144]
[1773164647847,0.03,70708.0,70696.0,0.00144]
[1773164648570,0.10071379,70708.0,70696.0,0.07216506]
[1773164648734,0.00011266,70711.0,70696.0,0.12705106]
[1773164649080,0.07069937,70722.0,70697.0,0.054886]
[1773164649285,0.07090263,70719.0,70697.0,0.05499866]
[1773164649587,0.0002,70719.0,70699.0,0.054886]
[1773164649762,0.0002,70719.0,70701.0,0.054886]
[1773164650797,0.0002,70719.0,70702.0,0.07071935]
[1773164650993,0.10070335,70718.0,70703.0,0.00144]
[1773164652029,0.10070335,70718.0,70704.0,0.00144]
[1773164652379,0.05643841,70719.0,70704.0,0.00144]
[1773164652380,0.03,70717.0,70704.0,0.00144]
[1773164652769,0.00023,70725.0,70706.0,0.054886]
[1773164653032,0.07092646,70725.0,70706.0,0.054886]
[1773164653224,0.07092646,70725.0,70698.0,0.07072261]
[1773164653225,0.05623841,70719.0,70683.0,0.054886]
[1773164653430,0.03,70703.0,70685.0,0.00144]
[1773164653727,0.03,70703.0,70687.0,0.054886]
[1773164653885,0.03,70703.0,70688.0,0.00502654]
[1773164654092,0.03,70703.0,70685.0,0.00777953]
[1773164654477,0.03,70702.0,70685.0,0.00777953]
[1773164654721,0.19006613,70700.0,70685.0,0.00633953]
[1773164654920,0.03,70700.0,70686.0,0.00144]
[1773164655119,0.03,70700.0,70687.0,0.05937412]
[1773164655276,0.0707194,70702.0,70687.0,0.05937412]
[1773164655479,0.0707183,70704.0,70690.0,0.00022]
[1773164655874,0.03,70703.0,70690.0,0.00022]
[1773164656094,0.03,70703.0,70690.0,0.06245677]
[1773164656303,0.03,70703.0,70691.0,0.00144]
[1773164656510,0.0707081,70714.0,70692.0,0.06223656]
[1773164656710,0.07070735,70715.0,70693.0,0.07072836]
[1773164656911,0.03,70714.0,70695.0,0.054886]
[1773164657149,0.03,70714.0,70697.0,0.054886]
[1773164657371,0.03,70714.0,70698.0,0.00878993]
[1773164657697,0.03,70714.0,70700.0,0.054886]
[1773164657890,0.03,70713.0,70700.0,0.054886]
[1773164658055,0.07069286,70729.0,70703.0,0.267021]
[1773164658241,0.0710683,70729.0,70703.0,0.054886]
[1773164658452,0.05623841,70728.0,70703.0,0.054886]
[1773164658683,0.05623841,70728.0,70704.0,0.00144]
[1773164658875,0.03,70726.0,70705.0,0.07071635]
[1773164659655,0.03,70726.0,70706.0,0.05096915]
[1773164659901,0.00037544,70729.0,70705.0,0.07071635]
[1773164659902,0.03,70729.0,70705.0,0.07071635]
[1773164660096,0.081413,70729.0,70706.0,0.00144]
[1773164660297,0.081413,70729.0,70712.0,0.00048]
[1773164660492,0.081413,70729.0,70713.0,0.00144]
[1773164661052,0.03,70727.0,70713.0,0.07214756]
[1773164661874,0.03,70727.0,70713.0,0.00144]
[1773164662076,0.03,70727.0,70712.0,0.00048]
[1773164662364,0.081413,70723.0,70713.0,0.00144]
[1773164662552,0.03,70723.0,70701.0,0.07071964]
[1773164662751,0.03,70721.0,70702.0,0.00144]
[1773164663066,0.081413,70719.0,70700.0,0.07095107]
[1773164663266,0.23076748,70720.0,70691.0,0.07073036]
[1773164663267,0.03,70709.0,70691.0,0.07073036]
[1773164663452,0.39083361,70720.0,70684.0,0.00562]
[1773164663453,0.03,70700.0,70684.0,0.00562]
[1773164663701,0.03,70700.0,70675.0,0.00045]
[1773164663702,0.051413,70699.0,70675.0,0.00045]
[1773164663906,0.03,70696.0,70683.0,0.00144]
[1773164664150,0.081413,70696.0,70684.0,0.00144]
[1773164664650,0.081413,70696.0,70684.0,0.00181544]
[1773164665158,0.03,70694.0,70684.0,0.00181544]
[1773164665678,0.03,70694.0,70675.0,0.00045]
[1773164665896,0.03,70694.0,70683.0,0.00144]
[1773164666097,0.03,70694.0,70669.0,0.07075178]
[1773164666098,0.03,70690.0,70663.0,0.0002]
[1773164666244,0.03,70682.0,70675.0,0.00144]
[1773164666979,0.03,70682.0,70676.0,0.00144]
[1773164667322,0.03,70681.0,70676.0,0.00144]
[1773164668374,0.03,70680.0,70676.0,0.00144]
[1773164668581,0.07073636,70687.0,70676.0,0.00144]
[1773164669388,0.03,70693.0,70676.0,0.00166]
[1773164669683,0.03,70689.0,70676.0,0.00166]
[1773164670648,0.03,70688.0,70676.0,0.00166]
[1773164671318,0.03,70686.0,70676.0,0.00166]
[1773164672479,0.081413,70686.0,70677.0,0.00144]
[1773164672901,0.03,70686.0,70677.0,0.00144]
[1773164673116,0.03,70686.0,70678.0,0.00144]
[1773164673302,0.03,70684.0,70678.0,0.00144]
[1773164675511,0.10073819,70684.0,70679.0,0.00144]
[1773164676038,0.07073836,70683.0,70679.0,0.00144]
[1773164676252,0.07073067,70691.0,70679.0,0.00144]
[1773164676253,0.07073205,70690.0,70679.0,0.00144]
[1773164676612,0.07072375,70698.0,70679.0,0.00144]
[1773164676814,0.00023,70700.0,70680.0,0.05447083]
[1773164677015,0.07070481,70717.0,70682.0,0.05096915]
[1773164677016,0.07071626,70706.0,70682.0,0.05096915]
[1773164677247,0.03,70705.0,70682.0,0.05445926]
[1773164677566,0.03,70703.0,70684.0,0.05096915]
[1773164678452,0.03,70708.0,70685.0,0.958294]
[1773164678654,0.10071427,70708.0,70688.0,0.05096915]
[1773164678870,0.10071373,70708.0,70690.0,0.05096915]
[1773164679096,0.10071373,70708.0,70689.0,0.00144]
[1773164679446,0.10071373,70708.0,70686.0,0.0707344]
[1773164679673,0.10071373,70708.0,70687.0,0.07073417]
[1773164679868,0.10071373,70708.0,70688.0,0.00144]
[1773164680250,0.10071373,70708.0,70689.0,0.00144]
[1773164680685,0.23077948,70710.0,70691.0,0.05096915]
[1773164680686,0.03,70710.0,70691.0,0.05096915]
[1773164680886,0.0006427,70725.0,70692.0,0.958294]
[1773164681103,0.07069136,70730.0,70702.0,0.958294]
[1773164681286,0.07068983,70732.0,70700.0,0.00023]
[1773164681287,0.07089258,70729.0,70705.0,0.05096915]
[1773164681484,0.07089258,70729.0,70709.0,0.05096915]
[1773164681663,0.07089258,70729.0,70711.0,0.958294]
[1773164681664,0.03,70728.0,70711.0,0.958294]
[1773164681894,0.00562,70740.0,70714.0,0.05096915]
[1773164682088,0.00562,70740.0,70717.0,0.790807]
[1773164682287,0.00562,70740.0,70709.0,0.22487235]
[1773164682288,0.00573259,70740.0,70720.0,0.05096915]
[1773164682493,0.00573259,70740.0,70724.0,0.05096915]
[1773164682844,0.10641404,70740.0,70726.0,0.385207]
[1773164682969,0.10641404,70740.0,70725.0,0.00144]
[1773164683570,0.10641404,70740.0,70726.0,0.07069535]
[1773164684009,0.10663405,70740.0,70726.0,0.07069535]
[1773164684275,0.051413,70739.0,70707.0,0.05096915]
[1773164684494,0.051413,70739.0,70710.0,0.2121]
[1773164684495,0.081413,70738.0,70710.0,0.2121]
[1773164684695,0.081413,70738.0,70712.0,0.54267915]
[1773164684923,0.081413,70738.0,70713.0,0.05240915]
[1773164684924,0.03,70738.0,70713.0,0.05240915]
[1773164685278,0.03,70738.0,70713.0,0.05096915]
[1773164685469,0.03,70737.0,70716.0,0.11794]
[1773164685673,0.03,70735.0,70719.0,0.05096915]
[1773164686378,0.03,70735.0,70720.0,0.00144]
[1773164686583,0.03,70735.0,70719.0,0.05096915]
[1773164687231,0.03,70735.0,70715.0,0.07070435]
[1773164687543,0.03,70735.0,70720.0,0.00144]
[1773164687833,0.03,70733.0,70721.0,0.00144]
[1773164687998,0.03,70733.0,70715.0,0.11943248]
[1773164688418,0.03,70729.0,70711.0,0.07071035]
[1773164688954,0.07776315,70729.0,70712.0,0.00144]
[1773164689155,0.07776315,70729.0,70708.0,0.07071235]
[1773164689156,0.07776315,70729.0,70713.0,0.00144]
[1773164689314,0.03,70729.0,70707.0,0.00260282]
[1773164689514,0.15998939,70730.0,70708.0,0.00144]
[1773164689515,0.0798588,70727.0,70708.0,0.00144]
[1773164689858,0.03,70725.0,70708.0,0.07215263]
[1773164690033,0.03,70725.0,70708.0,0.00144]
[1773164690638,0.03,70725.0,70709.0,0.00144]
[1773164691011,0.03,70725.0,70705.0,0.00294692]
[1773164691245,0.03,70725.0,70706.0,0.00144]
[1773164691657,0.03,70725.0,70707.0,0.0031152]
[1773164691804,0.03,70723.0,70707.0,0.11917023]
[1773164692012,0.07069535,70729.0,70707.0,0.11917023]
[1773164692013,0.07069441,70727.0,70709.0,0.04845588]
[1773164692235,0.07069441,70727.0,70711.0,0.04845588]
[1773164692434,0.07068636,70735.0,70713.0,0.04845588]
[1773164692760,0.07068636,70737.0,70715.0,0.04845588]
[1773164692958,0.0498588,70735.0,70707.0,0.11917023]
[1773164693164,0.03,70734.0,70710.0,0.04845588]
[1773164693459,0.03,70734.0,70712.0,0.04845588]
[1773164693664,0.03,70734.0,70714.0,0.04845588]
[1773164693844,0.03,70732.0,70716.0,0.07070535]
[1773164694061,0.03,70732.0,70716.0,0.07288894]
[1773164694259,0.03,70732.0,70718.0,0.04845588]
[1773164694472,0.07068745,70734.0,70719.0,0.00218349]
[1773164694667,0.07068745,70734.0,70720.0,0.00144]
[1773164694852,0.03,70733.0,70720.0,0.00144]
[1773164695388,0.0798588,70733.0,70713.0,0.07070735]
[1773164695585,0.03,70731.0,70714.0,0.00144]
[1773164695972,0.03,70729.0,70715.0,0.07070635]
[1773164696969,0.07069136,70730.0,70715.0,0.07070635]
[1773164697372,0.07069136,70730.0,70712.0,0.0707087]
[1773164697574,0.12055016,70730.0,70713.0,0.00144]
[1773164697982,0.23068075,70730.0,70704.0,0.07071735]
[1773164698179,0.0498588,70729.0,70705.0,0.00144]
[1773164698555,0.0498588,70729.0,70704.0,0.07071735]
[1773164698751,0.0498588,70729.0,70705.0,0.00144]
[1773164698954,0.0498588,70729.0,70706.0,0.00144]
[1773164699763,0.0498588,70729.0,70704.0,0.07071735]
[1773164699965,0.0498588,70729.0,70705.0,0.00144]
[1773164700193,0.07069336,70728.0,70706.0,0.07071535]
[1773164700512,0.04968113,70725.0,70707.0,0.00144]
[1773164701130,0.15998939,70720.0,70694.0,0.07072695]
[1773164701380,0.03,70709.0,70689.0,0.07073151]
[1773164701537,0.03,70709.0,70694.0,0.00144]
[1773164701753,0.03,70702.0,70676.0,0.00022]
[1773164701930,0.03,70690.0,70678.0,1e-08]
[1773164702332,0.03,70688.0,70679.0,0.00144]
[1773164702537,0.03,70688.0,70679.0,0.00181551]
[1773164703366,0.07037687,70689.0,70680.0,0.00144]
[1773164703544,0.07037687,70689.0,70679.0,0.00037551]
[1773164703720,0.07037687,70689.0,70680.0,0.00144]
[1773164704228,0.07037687,70689.0,70681.0,0.00144]
[1773164704445,0.03,70686.0,70681.0,0.00144]
[1773164705542,0.07126677,70688.0,70681.0,0.00144]
[1773164705712,0.07126677,70688.0,70682.0,0.00144]
[1773164705910,0.07126677,70688.0,70670.0,0.07097137]
[1773164706161,0.0713793,70688.0,70671.0,0.00144]
[1773164706460,0.0713793,70688.0,70670.0,0.07097063]
[1773164706696,0.0713793,70688.0,70671.0,0.00144]
[1773164707023,0.15998939,70681.0,70670.0,0.00022]
[1773164707228,0.03,70678.0,70663.0,0.0002]
[1773164707474,0.03,70676.0,70663.0,0.0002]
[1773164707656,0.0798588,70676.0,70664.0,0.00144]
[1773164707865,0.0798588,70676.0,70656.0,0.00562]
[1773164707866,0.0498588,70675.0,70656.0,0.00562]
[1773164708070,0.03,70674.0,70665.0,0.00144]
[1773164708240,0.03,70674.0,70656.0,0.00562]
[1773164708442,0.03,70674.0,70662.0,0.00144]
[1773164708443,0.03,70670.0,70662.0,0.00144]
[1773164708785,0.03,70668.0,70663.0,0.00144]
[1773164709135,0.07075238,70671.0,70663.0,0.00144]
[1773164709666,0.03,70698.0,70664.0,0.61905]
[1773164709867,0.03,70698.0,70666.0,0.958294]
[1773164710191,0.03,70698.0,70672.0,0.958294]
[1773164710350,0.03,70698.0,70675.0,0.04845588]
[1773164710687,0.10072362,70698.0,70681.0,0.07074036]
[1773164710890,0.10072362,70698.0,70682.0,0.00144]
[1773164711065,0.10072362,70698.0,70677.0,0.04845588]
[1773164711266,0.10072289,70699.0,70678.0,0.00144]
[1773164711439,0.07071052,70711.0,70682.0,0.28646537]
[1773164711637,0.07071052,70711.0,70685.0,0.04845588]
[1773164711838,0.07071052,70711.0,70683.0,0.00581238]
[1773164711839,0.07071052,70711.0,70687.0,0.04845588]
[1773164712270,0.15998939,70710.0,70688.0,0.05420493]
[1773164712586,0.03,70709.0,70688.0,0.05420493]
[1773164712815,0.03,70707.0,70689.0,0.07073236]
[1773164712944,0.03,70707.0,70690.0,0.00144]
[1773164713594,0.03,70707.0,70688.0,0.11918824]
[1773164713595,0.03,70707.0,70691.0,0.00144]
[1773164714112,0.03,70707.0,70682.0,0.35720382]
[1773164714477,0.03,70699.0,70683.0,0.00144]
[1773164715079,0.03,70699.0,70684.0,0.00144]
[1773164715080,0.10072249,70699.0,70684.0,0.00144]
[1773164716438,0.03,70697.0,70676.0,0.37074486]
[1773164716627,0.03,70697.0,70677.0,0.00144]
[1773164716831,0.03,70695.0,70677.0,0.07218401]
[1773164717038,0.03,70695.0,70678.0,0.00144]
[1773164717400,0.03,70695.0,70679.0,0.00144]
[1773164717594,0.03,70689.0,70679.0,0.00144]
[1773164717820,0.03,70689.0,70675.0,0.00023]
[1773164717983,0.03011262,70689.0,70676.0,0.00144]
[1773164718191,0.03011262,70689.0,70675.0,0.00023]
[1773164718192,0.03011262,70689.0,70677.0,0.00144]
[1773164718836,0.03,70687.0,70677.0,0.00144]
[1773164718990,0.03,70687.0,70678.0,0.00144]
[1773164719904,0.03,70686.0,70678.0,0.00144]
[1773164720112,0.03,70686.0,70679.0,0.00144]
[1773164720689,0.03,70686.0,70675.0,0.00023]
[1773164720690,0.03,70686.0,70680.0,0.00144]
[1773164721047,0.10073636,70685.0,70680.0,0.00144]
[1773164721389,0.10073636,70685.0,70675.0,0.00023]
[1773164721588,0.04788668,70682.0,70668.0,0.00144]
[1773164721790,0.03,70679.0,70668.0,0.00144]
[1773164721998,0.03,70679.0,70666.0,0.0002]
[1773164722199,0.03,70677.0,70667.0,0.00144]
[1773164722559,0.03,70673.0,70660.0,0.00144]
[1773164722708,0.03,70669.0,70660.0,0.00144]
[1773164722911,0.03,70669.0,70655.0,1e-08]
[1773164722912,0.03,70667.0,70655.0,1e-08]
[1773164723110,0.03,70665.0,70652.0,0.10173382]
[1773164723337,0.03,70659.0,70653.0,0.00144]
[1773164724031,0.03,70659.0,70652.0,0.00144]
[1773164724238,0.03,70659.0,70648.0,1e-08]
[1773164724457,0.03,70659.0,70633.0,0.0003663]
[1773164724675,0.03,70649.0,70633.0,0.0004941]
[1773164724883,0.03,70647.0,70634.0,0.00144]
[1773164725093,0.03,70645.0,70634.0,0.00144]
[1773164725734,0.03,70645.0,70635.0,0.00144]
[1773164726858,0.03,70644.0,70635.0,0.00144]
[1773164727451,0.03,70644.0,70637.0,0.0002]
[1773164727618,0.10077762,70644.0,70637.0,0.0003297]
[1773164727812,0.1007775,70644.0,70637.0,0.0003297]
[1773164728251,0.1007775,70644.0,70624.0,0.29332248]
[1773164728437,0.1007775,70644.0,70625.0,0.00144]
[1773164729361,0.1007775,70644.0,70626.0,0.07079545]
[1773164729812,0.03,70639.0,70625.0,0.00144]
[1773164730016,0.03,70639.0,70617.0,0.07080402]
[1773164730215,0.03,70639.0,70618.0,0.00144]
[1773164730655,0.03,70637.0,70618.0,0.00144]
[1773164731078,0.03,70637.0,70618.0,0.0489421]
[1773164731502,0.03,70635.0,70618.0,0.11974554]
[1773164731711,0.03,70635.0,70618.0,0.0489421]
[1773164731913,0.03011251,70635.0,70618.0,0.11830542]
[1773164732137,0.03011251,70635.0,70619.0,0.00144]
[1773164732334,0.03011251,70635.0,70620.0,0.0475021]
[1773164732544,0.03,70634.0,70621.0,0.00144]
[1773164733170,0.03,70634.0,70618.0,0.07080332]
[1773164733366,0.03,70634.0,70622.0,0.00144]
[1773164733566,0.10078778,70634.0,70622.0,0.07223899]
[1773164733771,0.10078778,70634.0,70622.0,0.00144]
[1773164734082,0.03,70633.0,70622.0,0.07223916]
[1773164734272,0.01714095,70644.0,70624.0,0.670238]
[1773164734430,0.01714095,70644.0,70625.0,0.0475021]
[1773164734431,0.08791859,70644.0,70625.0,0.0475021]
[1773164734622,0.15998939,70640.0,70624.0,0.00037612]
[1773164734823,0.04788668,70639.0,70625.0,0.00144]
[1773164735130,0.03,70638.0,70624.0,0.00037612]
[1773164735348,0.03,70638.0,70625.0,0.00144]
[1773164735539,0.03,70636.0,70625.0,0.00144]
[1773164735758,0.03,70632.0,70605.0,0.00015]
[1773164735964,0.03,70619.0,70611.0,0.00144]
[1773164736160,0.34194657,70619.0,70610.0,0.00144]
[1773164736472,0.15998939,70621.0,70610.0,0.00144]
[1773164736675,0.04788668,70619.0,70600.0,0.01734178]
[1773164737174,0.04888668,70619.0,70601.0,0.00144]
[1773164737562,0.07080347,70618.0,70601.0,0.00144]
[1773164737902,0.03,70617.0,70601.0,0.07226009]
[1773164738104,0.03,70617.0,70601.0,0.11976219]
[1773164738586,0.03,70616.0,70603.0,0.0475021]
[1773164738765,0.07080284,70619.0,70603.0,0.0475021]
[1773164738966,0.07080284,70619.0,70604.0,0.00144]
[1773164739799,0.10080364,70618.0,70605.0,0.07081651]
[1773164740180,0.07079849,70623.0,70605.0,0.07081651]
[1773164740385,0.07079646,70627.0,70607.0,0.648095]
[1773164740603,0.07079646,70627.0,70609.0,0.0475021]
[1773164740777,0.03,70626.0,70607.0,0.383146]
[1773164740987,0.03,70626.0,70608.0,0.00144]
[1773164741184,0.03,70626.0,70610.0,0.0475021]
[1773164741802,0.03,70628.0,70611.0,0.07081049]
[1773164741997,0.10079359,70628.0,70612.0,0.0489421]
[1773164742203,0.10079359,70628.0,70612.0,0.0475021]
[1773164742204,0.03,70621.0,70612.0,0.0475021]
[1773164742385,0.03,70621.0,70613.0,0.00144]
[1773164742585,0.07079359,70628.0,70613.0,0.00144]
[1773164743085,0.07079359,70628.0,70614.0,0.00144]
[1773164743086,0.15998939,70623.0,70614.0,0.00144]
[1773164743316,0.15998939,70623.0,70615.0,0.00144]
[1773164743569,0.03,70622.0,70616.0,0.00144]
[1773164744022,0.03,70620.0,70616.0,0.00144]
[1773164745942,0.03,70618.0,70617.0,0.00144]
[1773164746794,0.01325361,70631.0,70617.0,0.00144]
[1773164746989,0.19052465,70630.0,70617.0,0.00144]
[1773164747212,0.19052465,70630.0,70618.0,0.00144]
[1773164747379,0.03,70622.0,70606.0,0.04528798]
[1773164747579,0.001,70618.0,70607.0,0.00144]
[1773164747816,0.001,70618.0,70605.0,0.11610389]
[1773164748031,0.03,70616.0,70604.0,0.0002]
[1773164748192,0.03,70616.0,70605.0,0.00144]
[1773164748381,0.03,70616.0,70604.0,0.0002]
[1773164748603,0.03,70616.0,70605.0,0.00144]
[1773164749006,0.03,70616.0,70604.0,0.0002]
[1773164749218,0.03,70616.0,70605.0,0.00144]
[1773164749883,0.03,70614.0,70605.0,0.00144]
[1773164750091,0.03,70614.0,70610.0,0.00048]
[1773164750293,0.07080648,70616.0,70610.0,0.00048]
[1773164750507,0.23132913,70620.0,70610.0,0.00048]
[1773164750912,0.03,70619.0,70610.0,0.00048]
[1773164751568,0.16052465,70630.0,70611.0,0.0476905]
[1773164751722,0.2313171,70630.0,70611.0,0.0476905]
[1773164751921,0.03,70629.0,70612.0,0.11849999]
[1773164752130,0.03,70629.0,70613.0,0.00144]
[1773164752343,0.03,70629.0,70614.0,0.00144]
[1773164754002,0.03,70629.0,70615.0,0.00144]
[1773164754331,0.03,70627.0,70616.0,0.00144]
[1773164754729,0.08404454,70631.0,70617.0,0.0476905]
[1773164754905,0.16052465,70630.0,70617.0,0.0476905]
[1773164755106,0.03,70629.0,70616.0,0.00144]
[1773164755982,0.00017045,70619.0,70616.0,0.00144]
[1773164756214,0.03,70627.0,70616.0,0.00144]
[1773164756591,0.03,70627.0,70610.0,0.07129071]
[1773164756592,0.03,70627.0,70617.0,0.00144]
[1773164757686,0.03,70627.0,70618.0,0.00144]
[1773164758017,0.03,70620.0,70619.0,0.00144]
[1773164758488,0.10080147,70620.0,70619.0,0.00144]
[1773164758691,0.26132612,70620.0,70619.0,0.00144]
[1773164758866,0.19052465,70620.0,70619.0,0.00144]
[1773164759283,0.19052465,70620.0,70607.0,0.0476905]
[1773164759284,0.07845656,70618.0,70602.0,0.0002]
[1773164759495,0.03,70618.0,70605.0,0.00144]
[1773164759870,0.07845656,70618.0,70602.0,0.0002]
[1773164760077,0.07845656,70618.0,70605.0,0.00144]
[1773164760354,0.07845656,70618.0,70602.0,0.0002]
[1773164760355,0.03,70616.0,70602.0,0.0002]
[1773164760572,0.07080448,70617.0,70603.0,0.00144]